[Event "Late-Titled-Tuesday-Blitz-October-17-2023"]
[Site "Chess.com"]
[Date "2023.10.17"]
[Round "1"]
[White "wgraif"]
[Black "dianamirza"]
[Result "1-0"]
[WhiteElo "2522"]
[BlackElo "1970"]
[TimeControl "180+1"]
[EndTime "14:06:57 PDT"]
[Termination "wgraif won by resignation"]

1. e4 {[%clk 0:02:57.2]} 1... c5 {[%clk 0:02:57]} 2. Nc3 {[%clk 0:02:56.9]} 2...
e6 {[%clk 0:02:57.2]} 3. Nge2 {[%clk 0:02:56]} 3... Nc6 {[%clk 0:02:57.9]} 4. g3
{[%clk 0:02:55.8]} 4... d6 {[%clk 0:02:56]} 5. Bg2 {[%clk 0:02:55.2]} 5... Nf6
{[%clk 0:02:56.6]} 6. O-O {[%clk 0:02:55.4]} 6... Be7 {[%clk 0:02:56.6]} 7. d4
{[%clk 0:02:55.4]} 7... cxd4 {[%clk 0:02:56.4]} 8. Nxd4 {[%clk 0:02:56.3]} 8...
O-O {[%clk 0:02:56.3]} 9. Nxc6 {[%clk 0:02:35.7]} 9... bxc6 {[%clk 0:02:55.1]}
10. e5 {[%clk 0:02:36.6]} 10... Nd5 {[%clk 0:02:53.8]} 11. exd6 {[%clk
0:02:35.1]} 11... Bxd6 {[%clk 0:02:53.6]} 12. Ne4 {[%clk 0:02:34.7]} 12... Be7
{[%clk 0:02:45.6]} 13. Qe2 {[%clk 0:01:55.4]} 13... a5 {[%clk 0:02:42.8]} 14. c4
{[%clk 0:01:50.4]} 14... Ba6 {[%clk 0:02:40.7]} 15. Rd1 {[%clk 0:01:47.4]} 15...
Qb6 {[%clk 0:02:23.4]} 16. Qc2 {[%clk 0:01:26]} 16... Nb4 {[%clk 0:02:13.4]} 17.
Qc3 {[%clk 0:01:24.9]} 17... c5 {[%clk 0:01:51.1]} 18. Bf4 {[%clk 0:01:18.4]}
18... Nc6 {[%clk 0:01:45.6]} 19. Be3 {[%clk 0:01:05.7]} 19... f5 {[%clk
0:01:33.5]} 20. Nd6 {[%clk 0:01:05.2]} 20... Bf6 {[%clk 0:01:32.4]} 21. Qb3
{[%clk 0:01:02.9]} 21... Qxb3 {[%clk 0:01:23.4]} 22. axb3 {[%clk 0:01:03.8]}
22... Nd4 {[%clk 0:01:11]} 23. Bxa8 {[%clk 0:01:01.5]} 23... Nxb3 {[%clk
0:01:04.9]} 24. Bg2 {[%clk 0:00:51.5]} 24... Nxa1 {[%clk 0:01:04.8]} 25. Rxa1
{[%clk 0:00:52.4]} 25... Bxb2 {[%clk 0:00:53]} 26. Rxa5 {[%clk 0:00:51]} 26...
Bc8 {[%clk 0:00:47.2]} 27. Nxc8 {[%clk 0:00:49]} 27... Rxc8 {[%clk 0:00:48.1]}
28. Ra8 {[%clk 0:00:45.2]} 28... Rxa8 {[%clk 0:00:47.4]} 29. Bxa8 {[%clk
0:00:46.1]} 29... Bd4 {[%clk 0:00:46.4]} 30. Bxd4 {[%clk 0:00:45.1]} 30... cxd4
{[%clk 0:00:47.3]} 31. f4 {[%clk 0:00:45]} 31... Kf7 {[%clk 0:00:45.9]} 32. Kf2
{[%clk 0:00:45.9]} 32... Ke7 {[%clk 0:00:41.9]} 33. Ke2 {[%clk 0:00:46.3]} 33...
Kd6 {[%clk 0:00:42.5]} 34. Kd3 {[%clk 0:00:45.1]} 34... e5 {[%clk 0:00:35.2]}
35. fxe5+ {[%clk 0:00:46]} 35... Kxe5 {[%clk 0:00:36.1]} 36. c5 {[%clk
0:00:45.4]} 36... g5 {[%clk 0:00:33.7]} 37. Bg2 {[%clk 0:00:40.8]} 37... h5
{[%clk 0:00:23.1]} 38. h4 {[%clk 0:00:39.8]} 38... gxh4 {[%clk 0:00:20.5]} 39.
gxh4 {[%clk 0:00:40.7]} 39... f4 {[%clk 0:00:20.1]} 40. Bf3 {[%clk 0:00:39.9]}
40... Ke6 {[%clk 0:00:16.6]} 41. Kxd4 {[%clk 0:00:40.8]} 41... Kd7 {[%clk
0:00:16.8]} 42. c6+ {[%clk 0:00:38.5]} 42... Kc7 {[%clk 0:00:17.7]} 43. Kc5
{[%clk 0:00:38.9]} 43... Kc8 {[%clk 0:00:15.9]} 44. Kd6 {[%clk 0:00:39]} 44...
Kd8 {[%clk 0:00:16.1]} 45. c7+ {[%clk 0:00:35.2]} 45... Kc8 {[%clk 0:00:17]} 46.
Be4 {[%clk 0:00:35.3]} 46... f3 {[%clk 0:00:15.6]} 47. Kc6 {[%clk 0:00:36.2]}
1-0

[Event "Late-Titled-Tuesday-Blitz-October-17-2023"]
[Site "Chess.com"]
[Date "2023.10.17"]
[Round "1"]
[White "slorovel"]
[Black "K_A_S_T_O_R"]
[Result "0-1"]
[WhiteElo "2470"]
[BlackElo "2874"]
[TimeControl "180+1"]
[EndTime "14:07:02 PDT"]
[Termination "K_A_S_T_O_R won by checkmate"]

1. e4 {[%clk 0:03:00.9]} 1... c5 {[%clk 0:02:57.4]} 2. Nf3 {[%clk 0:02:50]} 2...
d6 {[%clk 0:02:57.3]} 3. Bb5+ {[%clk 0:02:48]} 3... Nc6 {[%clk 0:02:56.3]} 4.
Bxc6+ {[%clk 0:02:41.4]} 4... bxc6 {[%clk 0:02:56.1]} 5. Nc3 {[%clk 0:02:42.2]}
5... e5 {[%clk 0:02:55.2]} 6. O-O {[%clk 0:02:43.1]} 6... Nf6 {[%clk 0:02:49]}
7. d3 {[%clk 0:02:41.1]} 7... Be7 {[%clk 0:02:48.5]} 8. h3 {[%clk 0:02:41.3]}
8... h6 {[%clk 0:02:40.2]} 9. Nd2 {[%clk 0:02:41.2]} 9... O-O {[%clk 0:02:38.8]}
10. Nc4 {[%clk 0:02:40.9]} 10... Be6 {[%clk 0:02:38.4]} 11. b3 {[%clk
0:02:37.6]} 11... Nd7 {[%clk 0:02:14.8]} 12. Be3 {[%clk 0:02:37.3]} 12... Nb6
{[%clk 0:02:14.3]} 13. a3 {[%clk 0:02:32.4]} 13... f6 {[%clk 0:02:05.9]} 14. Qe2
{[%clk 0:02:30.2]} 14... d5 {[%clk 0:02:05.5]} 15. Nxb6 {[%clk 0:02:24.1]} 15...
axb6 {[%clk 0:02:06]} 16. Na4 {[%clk 0:02:20.8]} 16... d4 {[%clk 0:02:02]} 17.
Bd2 {[%clk 0:02:19.7]} 17... b5 {[%clk 0:02:01.6]} 18. Nb2 {[%clk 0:02:19.8]}
18... g5 {[%clk 0:01:56.2]} 19. Qh5 {[%clk 0:02:09.4]} 19... Kg7 {[%clk
0:01:55.8]} 20. g3 {[%clk 0:02:09.8]} 20... Qd7 {[%clk 0:01:54.8]} 21. Kh2
{[%clk 0:02:08.5]} 21... Bf7 {[%clk 0:01:54.2]} 22. Qg4 {[%clk 0:02:07.1]} 22...
Qxg4 {[%clk 0:01:47]} 23. hxg4 {[%clk 0:02:08]} 23... Ra7 {[%clk 0:01:42.6]} 24.
a4 {[%clk 0:02:01.9]} 24... Rfa8 {[%clk 0:01:42.4]} 25. Ra2 {[%clk 0:01:53.4]}
25... Be6 {[%clk 0:01:26.9]} 26. f3 {[%clk 0:01:52.9]} 26... Kg6 {[%clk
0:01:25.4]} 27. Kg2 {[%clk 0:01:52.5]} 27... h5 {[%clk 0:01:12.6]} 28. gxh5+
{[%clk 0:01:51.8]} 28... Kxh5 {[%clk 0:01:13.2]} 29. Rh1+ {[%clk 0:01:39.3]}
29... Kg6 {[%clk 0:01:13]} 30. f4 {[%clk 0:01:39.8]} 30... gxf4 {[%clk
0:01:09.2]} 31. gxf4 {[%clk 0:01:40.7]} 31... exf4 {[%clk 0:01:09.5]} 32. Bxf4
{[%clk 0:01:40.2]} 32... Rg8 {[%clk 0:01:00.9]} 33. Kf2 {[%clk 0:01:35.4]} 33...
Kf7 {[%clk 0:00:57]} 34. Raa1 {[%clk 0:01:33.6]} 34... Raa8 {[%clk 0:00:54.4]}
35. Rh7+ {[%clk 0:01:25.6]} 35... Rg7 {[%clk 0:00:54.3]} 36. Rxg7+ {[%clk
0:01:25.4]} 36... Kxg7 {[%clk 0:00:54.2]} 37. Rg1+ {[%clk 0:01:22.8]} 37... Kf7
{[%clk 0:00:53.6]} 38. Bh6 {[%clk 0:01:21.5]} 38... Rh8 {[%clk 0:00:50.4]} 39.
Rg7+ {[%clk 0:01:19.4]} 39... Ke8 {[%clk 0:00:50.5]} 40. Bf4 {[%clk 0:01:19.8]}
40... Kf8 {[%clk 0:00:41.9]} 41. Rg1 {[%clk 0:01:17.9]} 41... Kf7 {[%clk
0:00:42.1]} 42. axb5 {[%clk 0:01:16]} 42... cxb5 {[%clk 0:00:41.8]} 43. Ra1
{[%clk 0:01:16.9]} 43... Rc8 {[%clk 0:00:40.8]} 44. Ra7 {[%clk 0:01:16.6]} 44...
Ke8 {[%clk 0:00:40.5]} 45. Rb7 {[%clk 0:01:06.4]} 45... c4 {[%clk 0:00:38.4]}
46. bxc4 {[%clk 0:00:58.4]} 46... bxc4 {[%clk 0:00:38.4]} 47. Ke2 {[%clk
0:00:52.5]} 47... c3 {[%clk 0:00:31.1]} 48. Na4 {[%clk 0:00:51.6]} 48... Ra8
{[%clk 0:00:28.6]} 49. Nb6 {[%clk 0:00:46.4]} 49... Ra2 {[%clk 0:00:28.4]} 50.
Kd1 {[%clk 0:00:41.2]} 50... Bg4+ {[%clk 0:00:28.3]} 51. Kc1 {[%clk 0:00:41.6]}
51... Ra1# {[%clk 0:00:28.2]} 0-1

[Event "Late-Titled-Tuesday-Blitz-October-17-2023"]
[Site "Chess.com"]
[Date "2023.10.17"]
[Round "1"]
[White "SereneSalmon"]
[Black "Hasangatin_Ramil"]
[Result "1-0"]
[WhiteElo "2422"]
[BlackElo "2707"]
[TimeControl "180+1"]
[EndTime "14:07:03 PDT"]
[Termination "SereneSalmon won on time"]

1. d4 {[%clk 0:03:00.9]} 1... d6 {[%clk 0:02:59.6]} 2. Nf3 {[%clk 0:03:00.8]}
2... Bg4 {[%clk 0:02:59.6]} 3. c4 {[%clk 0:02:59.9]} 3... Bxf3 {[%clk
0:02:59.7]} 4. gxf3 {[%clk 0:02:58.5]} 4... c6 {[%clk 0:03:00.6]} 5. Nc3 {[%clk
0:02:58.5]} 5... g6 {[%clk 0:03:01]} 6. e4 {[%clk 0:02:58.6]} 6... Bg7 {[%clk
0:03:01.5]} 7. Be3 {[%clk 0:02:58.7]} 7... Nf6 {[%clk 0:03:01.4]} 8. Qd2 {[%clk
0:02:58.7]} 8... O-O {[%clk 0:03:00.7]} 9. h4 {[%clk 0:02:53.7]} 9... d5 {[%clk
0:03:00.1]} 10. e5 {[%clk 0:02:52.3]} 10... Nh5 {[%clk 0:02:59.4]} 11. cxd5
{[%clk 0:02:48.5]} 11... cxd5 {[%clk 0:02:59]} 12. Be2 {[%clk 0:02:48.7]} 12...
Bh8 {[%clk 0:02:43.1]} 13. f4 {[%clk 0:02:38.7]} 13... Ng7 {[%clk 0:02:43.1]}
14. h5 {[%clk 0:02:39.3]} 14... Nc6 {[%clk 0:02:42.1]} 15. hxg6 {[%clk
0:02:35.3]} 15... fxg6 {[%clk 0:02:41.7]} 16. Bd3 {[%clk 0:02:17.8]} 16... e6
{[%clk 0:02:41.2]} 17. O-O-O {[%clk 0:02:08.8]} 17... Ne7 {[%clk 0:02:41]} 18.
Kb1 {[%clk 0:02:08.3]} 18... Rf7 {[%clk 0:02:35.5]} 19. Nb5 {[%clk 0:01:59.9]}
19... Ngf5 {[%clk 0:02:30.3]} 20. Rc1 {[%clk 0:01:56.1]} 20... Nc6 {[%clk
0:02:07.3]} 21. Bxf5 {[%clk 0:01:31.5]} 21... Rxf5 {[%clk 0:02:06.8]} 22. Nd6
{[%clk 0:01:30.7]} 22... Rf8 {[%clk 0:02:06.8]} 23. Nxb7 {[%clk 0:01:30.3]}
23... Qb6 {[%clk 0:02:05.2]} 24. Nc5 {[%clk 0:01:29]} 24... Rfe8 {[%clk
0:01:57.4]} 25. Rcg1 {[%clk 0:01:04.1]} 25... Qb4 {[%clk 0:01:48.9]} 26. Qd3
{[%clk 0:00:58.7]} 26... Qc4 {[%clk 0:01:44.4]} 27. Rxg6+ {[%clk 0:00:49.8]}
27... hxg6 {[%clk 0:01:41.5]} 28. Qxg6+ {[%clk 0:00:50.7]} 28... Bg7 {[%clk
0:01:42.1]} 29. Nxe6 {[%clk 0:00:38.8]} 29... Rxe6 {[%clk 0:01:11.1]} 30. Qxe6+
{[%clk 0:00:39.7]} 30... Kf8 {[%clk 0:01:11.6]} 31. f5 {[%clk 0:00:37.3]} 31...
Qxd4 {[%clk 0:00:59.5]} 32. Bxd4 {[%clk 0:00:33]} 32... Nxd4 {[%clk 0:00:59.8]}
33. Qd6+ {[%clk 0:00:33.5]} 33... Ke8 {[%clk 0:00:59.1]} 34. f6 {[%clk
0:00:30.8]} 34... Bf8 {[%clk 0:00:58.5]} 35. Rh8 {[%clk 0:00:30.3]} 35... Kf7
{[%clk 0:00:57.7]} 36. Qxd5+ {[%clk 0:00:30.8]} 36... Kg6 {[%clk 0:00:57.1]} 37.
Qxa8 {[%clk 0:00:29.9]} 1-0

[Event "Late-Titled-Tuesday-Blitz-October-17-2023"]
[Site "Chess.com"]
[Date "2023.10.17"]
[Round "1"]
[White "Yushko_Olga"]
[Black "bipe137"]
[Result "0-1"]
[WhiteElo "2154"]
[BlackElo "2538"]
[TimeControl "180+1"]
[EndTime "14:07:07 PDT"]
[Termination "bipe137 won on time"]

1. d4 {[%clk 0:02:58.6]} 1... d5 {[%clk 0:02:59.8]} 2. c4 {[%clk 0:02:58.7]}
2... e6 {[%clk 0:03:00.2]} 3. cxd5 {[%clk 0:02:56.3]} 3... exd5 {[%clk
0:03:00.1]} 4. Nc3 {[%clk 0:02:56.7]} 4... c6 {[%clk 0:03:00.5]} 5. Nf3 {[%clk
0:02:57.2]} 5... Bd6 {[%clk 0:03:00.9]} 6. Bg5 {[%clk 0:02:57.3]} 6... Ne7
{[%clk 0:03:00.9]} 7. e3 {[%clk 0:02:57]} 7... Bf5 {[%clk 0:02:59.7]} 8. Bd3
{[%clk 0:02:56.4]} 8... Bxd3 {[%clk 0:02:59.6]} 9. Qxd3 {[%clk 0:02:57.1]} 9...
O-O {[%clk 0:02:58.9]} 10. O-O {[%clk 0:02:56.5]} 10... Nd7 {[%clk 0:02:59.3]}
11. Rac1 {[%clk 0:02:51.3]} 11... Qb6 {[%clk 0:02:54.6]} 12. b3 {[%clk
0:02:48.3]} 12... Ng6 {[%clk 0:02:53.5]} 13. e4 {[%clk 0:02:47.6]} 13... h6
{[%clk 0:02:41]} 14. Be3 {[%clk 0:02:41.1]} 14... dxe4 {[%clk 0:02:39.8]} 15.
Nxe4 {[%clk 0:02:40.8]} 15... Bf4 {[%clk 0:02:35.4]} 16. Nc5 {[%clk 0:02:36.1]}
16... Nxc5 {[%clk 0:02:32.5]} 17. dxc5 {[%clk 0:02:35.7]} 17... Qa5 {[%clk
0:02:32.6]} 18. Bxf4 {[%clk 0:02:32]} 18... Nxf4 {[%clk 0:02:32.1]} 19. Qe4
{[%clk 0:02:26.9]} 19... Nd5 {[%clk 0:02:29.7]} 20. Rc2 {[%clk 0:02:19.2]} 20...
Rfe8 {[%clk 0:02:28.6]} 21. Qg4 {[%clk 0:02:15.5]} 21... Rad8 {[%clk 0:02:27.3]}
22. h3 {[%clk 0:02:10.2]} 22... Nf6 {[%clk 0:02:20.4]} 23. Qf4 {[%clk
0:02:02.9]} 23... Re4 {[%clk 0:02:18.4]} 24. Qc1 {[%clk 0:01:52.5]} 24... Rd3
{[%clk 0:02:12.1]} 25. Re1 {[%clk 0:01:45.2]} 25... Rxe1+ {[%clk 0:02:06.2]} 26.
Nxe1 {[%clk 0:01:44.1]} 26... Rd5 {[%clk 0:02:06]} 27. Nf3 {[%clk 0:01:35.8]}
27... Ne4 {[%clk 0:02:01.3]} 28. Qe3 {[%clk 0:01:21.8]} 28... f5 {[%clk
0:01:59.9]} 29. Nh4 {[%clk 0:01:14.7]} 29... Rd1+ {[%clk 0:01:37.1]} 30. Kh2
{[%clk 0:01:13.1]} 30... Qc7+ {[%clk 0:01:33.4]} 31. g3 {[%clk 0:01:07.4]} 31...
Qe5 {[%clk 0:01:33]} 32. Re2 {[%clk 0:01:03.7]} 32... Qa1 {[%clk 0:01:31.6]} 33.
Qf3 {[%clk 0:00:57.5]} 33... Ng5 {[%clk 0:01:06.5]} 34. Qg2 {[%clk 0:00:26.6]}
34... Qf6 {[%clk 0:00:59.5]} 35. Nf3 {[%clk 0:00:12.8]} 35... Ne4 {[%clk
0:00:56.1]} 36. Nh4 {[%clk 0:00:12]} 36... Rd4 {[%clk 0:00:53.4]} 37. Qf3 {[%clk
0:00:09.2]} 37... g6 {[%clk 0:00:53.2]} 38. a3 {[%clk 0:00:06.3]} 38... Rd5
{[%clk 0:00:49.3]} 39. b4 {[%clk 0:00:06.2]} 39... Kg7 {[%clk 0:00:46.9]} 40.
Rxe4 {[%clk 0:00:03.6]} 40... fxe4 {[%clk 0:00:46.4]} 41. Qxe4 {[%clk
0:00:03.5]} 41... Qxf2+ {[%clk 0:00:46.5]} 42. Kh1 {[%clk 0:00:04]} 42... Rd1+
{[%clk 0:00:46.1]} 0-1

[Event "Late-Titled-Tuesday-Blitz-October-17-2023"]
[Site "Chess.com"]
[Date "2023.10.17"]
[Round "1"]
[White "kingofthenil"]
[Black "santosalberto1987"]
[Result "1/2-1/2"]
[WhiteElo "2719"]
[BlackElo "2417"]
[TimeControl "180+1"]
[EndTime "14:07:09 PDT"]
[Termination "Game drawn by repetition"]

1. Nf3 {[%clk 0:02:48.6]} 1... d5 {[%clk 0:02:59.8]} 2. g3 {[%clk 0:02:46.2]}
2... Nf6 {[%clk 0:02:59.9]} 3. Bg2 {[%clk 0:02:46.4]} 3... c6 {[%clk 0:03:00.4]}
4. O-O {[%clk 0:02:46.3]} 4... Bf5 {[%clk 0:03:00.8]} 5. b3 {[%clk 0:02:44.2]}
5... e6 {[%clk 0:02:59.6]} 6. Bb2 {[%clk 0:02:45.1]} 6... Be7 {[%clk 0:02:59.7]}
7. d3 {[%clk 0:02:39.5]} 7... h6 {[%clk 0:02:59.5]} 8. Nbd2 {[%clk 0:02:39.5]}
8... O-O {[%clk 0:02:59]} 9. Qe1 {[%clk 0:02:40.4]} 9... a5 {[%clk 0:02:57.7]}
10. e4 {[%clk 0:02:41.3]} 10... Bh7 {[%clk 0:02:57.3]} 11. a3 {[%clk 0:02:39.4]}
11... Na6 {[%clk 0:02:57.1]} 12. Qe2 {[%clk 0:02:38.7]} 12... Nc5 {[%clk
0:02:56]} 13. Ne5 {[%clk 0:02:32.3]} 13... Nfd7 {[%clk 0:02:55.1]} 14. Nxd7
{[%clk 0:02:24.3]} 14... Nxd7 {[%clk 0:02:55]} 15. f4 {[%clk 0:01:55.9]} 15...
dxe4 {[%clk 0:02:53.9]} 16. Nxe4 {[%clk 0:01:55]} 16... Nf6 {[%clk 0:02:50]} 17.
a4 {[%clk 0:01:49.1]} 17... Nxe4 {[%clk 0:02:48.9]} 18. dxe4 {[%clk 0:01:50]}
18... Bf6 {[%clk 0:02:45]} 19. Bxf6 {[%clk 0:01:12.1]} 19... Qxf6 {[%clk
0:02:45.9]} 20. e5 {[%clk 0:01:13]} 20... Qe7 {[%clk 0:02:45.1]} 21. Rad1 {[%clk
0:01:13.9]} 21... Rfd8 {[%clk 0:02:43.8]} 22. c4 {[%clk 0:01:08.5]} 22... Rxd1
{[%clk 0:02:41.8]} 23. Rxd1 {[%clk 0:01:09.4]} 23... Rd8 {[%clk 0:02:41.7]} 24.
h4 {[%clk 0:01:06.9]} 24... Rd7 {[%clk 0:02:31.4]} 25. Kh2 {[%clk 0:01:00.1]}
25... Qd8 {[%clk 0:02:31.1]} 26. Rxd7 {[%clk 0:01:00]} 26... Qxd7 {[%clk
0:02:32]} 27. Qe3 {[%clk 0:01:00.8]} 27... Bf5 {[%clk 0:01:51.6]} 28. Bf3 {[%clk
0:00:28.7]} 28... Qd3 {[%clk 0:01:49.8]} 29. Qxd3 {[%clk 0:00:28.5]} 29... Bxd3
{[%clk 0:01:49.9]} 30. Bd1 {[%clk 0:00:29.4]} 30... c5 {[%clk 0:01:33]} 31. Kg2
{[%clk 0:00:29]} 31... b6 {[%clk 0:01:31.8]} 32. g4 {[%clk 0:00:26.7]} 32... g5
{[%clk 0:01:28.6]} 33. fxg5 {[%clk 0:00:26.3]} 33... hxg5 {[%clk 0:01:29.4]} 34.
h5 {[%clk 0:00:27.2]} 34... Kg7 {[%clk 0:01:29.6]} 35. Kf2 {[%clk 0:00:27.3]}
35... Kh6 {[%clk 0:01:06.5]} 36. Ke3 {[%clk 0:00:23.8]} 36... Bb1 {[%clk
0:01:06.3]} 37. Kd2 {[%clk 0:00:15.8]} 37... Be4 {[%clk 0:01:04.3]} 38. Ke3
{[%clk 0:00:14.8]} 38... Bb1 {[%clk 0:00:58.6]} 39. Kd2 {[%clk 0:00:01.7]} 39...
Be4 {[%clk 0:00:44.5]} 40. Kc1 {[%clk 0:00:01.9]} 40... Kg7 {[%clk 0:00:41.9]}
41. Kd2 {[%clk 0:00:02.1]} 41... Kh6 {[%clk 0:00:29.6]} 1/2-1/2

[Event "Late-Titled-Tuesday-Blitz-October-17-2023"]
[Site "Chess.com"]
[Date "2023.10.17"]
[Round "1"]
[White "jamengrand"]
[Black "NateSolon"]
[Result "0-1"]
[WhiteElo "2328"]
[BlackElo "2631"]
[TimeControl "180+1"]
[EndTime "14:07:09 PDT"]
[Termination "NateSolon won by checkmate"]

1. e4 {[%clk 0:02:59.1]} 1... c5 {[%clk 0:02:59.7]} 2. Be2 {[%clk 0:02:58.8]}
2... Nc6 {[%clk 0:02:57.3]} 3. f4 {[%clk 0:02:58.8]} 3... d5 {[%clk 0:02:47.8]}
4. d3 {[%clk 0:02:58.1]} 4... e6 {[%clk 0:02:45.6]} 5. Nf3 {[%clk 0:02:57.6]}
5... Bd6 {[%clk 0:02:45.6]} 6. O-O {[%clk 0:02:55.5]} 6... Nge7 {[%clk
0:02:45.7]} 7. c3 {[%clk 0:02:49.1]} 7... O-O {[%clk 0:02:44.2]} 8. e5 {[%clk
0:02:31.8]} 8... Bc7 {[%clk 0:02:44.1]} 9. d4 {[%clk 0:02:32.7]} 9... Bb6 {[%clk
0:02:34.1]} 10. Be3 {[%clk 0:02:25.8]} 10... cxd4 {[%clk 0:02:22.7]} 11. cxd4
{[%clk 0:02:26.7]} 11... f6 {[%clk 0:02:20.9]} 12. Qd2 {[%clk 0:02:22.3]} 12...
fxe5 {[%clk 0:02:16.6]} 13. fxe5 {[%clk 0:02:19.9]} 13... Nf5 {[%clk 0:02:14.8]}
14. Bf2 {[%clk 0:02:19.9]} 14... Bd7 {[%clk 0:02:10]} 15. Nc3 {[%clk 0:02:19]}
15... Be8 {[%clk 0:02:10.1]} 16. h3 {[%clk 0:02:14.4]} 16... Bg6 {[%clk
0:02:06.5]} 17. Rad1 {[%clk 0:02:08.6]} 17... Rc8 {[%clk 0:02:06.1]} 18. Kh2
{[%clk 0:02:06.4]} 18... Na5 {[%clk 0:01:58.7]} 19. b3 {[%clk 0:02:03.9]} 19...
Nc6 {[%clk 0:01:58.5]} 20. Na4 {[%clk 0:01:41.1]} 20... Ba5 {[%clk 0:01:54.8]}
21. Qb2 {[%clk 0:01:20.8]} 21... Qe7 {[%clk 0:01:54.3]} 22. g4 {[%clk
0:01:13.6]} 22... Nh6 {[%clk 0:01:54.4]} 23. Bh4 {[%clk 0:01:10.8]} 23... Qc7
{[%clk 0:01:43.8]} 24. Rc1 {[%clk 0:01:08.1]} 24... Bb4 {[%clk 0:01:36.7]} 25.
a3 {[%clk 0:01:05.5]} 25... Be7 {[%clk 0:01:36.8]} 26. Bxe7 {[%clk 0:01:03.9]}
26... Qxe7 {[%clk 0:01:37.7]} 27. Qd2 {[%clk 0:00:56.1]} 27... Nf7 {[%clk
0:01:29.6]} 28. b4 {[%clk 0:00:54.8]} 28... Be4 {[%clk 0:01:22.3]} 29. Nc5
{[%clk 0:00:49.7]} 29... b6 {[%clk 0:01:15.2]} 30. Nxe4 {[%clk 0:00:47.7]} 30...
dxe4 {[%clk 0:01:16.1]} 31. Ng1 {[%clk 0:00:47.6]} 31... Rfd8 {[%clk 0:01:11.7]}
32. Ba6 {[%clk 0:00:45.8]} 32... Rc7 {[%clk 0:01:05.8]} 33. Qe3 {[%clk
0:00:41.9]} 33... Nxd4 {[%clk 0:01:01.9]} 34. Qxe4 {[%clk 0:00:42]} 34... Rcd7
{[%clk 0:00:46.6]} 35. Nf3 {[%clk 0:00:38.7]} 35... Nxf3+ {[%clk 0:00:42.4]} 36.
Rxf3 {[%clk 0:00:39.6]} 36... Ng5 {[%clk 0:00:42.4]} 37. Qe3 {[%clk 0:00:34.9]}
37... Nxf3+ {[%clk 0:00:40.1]} 38. Qxf3 {[%clk 0:00:35.3]} 38... Rd2+ {[%clk
0:00:40.4]} 39. Kh1 {[%clk 0:00:35.4]} 39... Qg5 {[%clk 0:00:28.9]} 40. Rf1
{[%clk 0:00:33.9]} 40... h6 {[%clk 0:00:22.5]} 41. Qf7+ {[%clk 0:00:25.1]} 41...
Kh8 {[%clk 0:00:21.4]} 42. Qxe6 {[%clk 0:00:23.7]} 42... Qh4 {[%clk 0:00:16.7]}
43. Rf3 {[%clk 0:00:23.8]} 43... Qe1+ {[%clk 0:00:16.4]} 44. Bf1 {[%clk
0:00:23.2]} 44... Rf2 {[%clk 0:00:15.2]} 45. Qf5 {[%clk 0:00:20.7]} 45... Qxf1#
{[%clk 0:00:14.4]} 0-1

[Event "Late-Titled-Tuesday-Blitz-October-17-2023"]
[Site "Chess.com"]
[Date "2023.10.17"]
[Round "1"]
[White "Rodalquilar"]
[Black "Misticpikachu"]
[Result "1-0"]
[WhiteElo "2781"]
[BlackElo "2417"]
[TimeControl "180+1"]
[EndTime "14:07:12 PDT"]
[Termination "Rodalquilar won by resignation"]

1. d4 {[%clk 0:03:00.9]} 1... d5 {[%clk 0:02:59.3]} 2. Nf3 {[%clk 0:03:00.6]}
2... e6 {[%clk 0:02:58.9]} 3. Bf4 {[%clk 0:03:00.8]} 3... Nf6 {[%clk 0:02:59.3]}
4. e3 {[%clk 0:03:01.1]} 4... Bd6 {[%clk 0:03:00]} 5. Nbd2 {[%clk 0:03:01.5]}
5... O-O {[%clk 0:03:00.6]} 6. c3 {[%clk 0:03:00.1]} 6... b6 {[%clk 0:03:01]} 7.
h4 {[%clk 0:02:59.7]} 7... Bb7 {[%clk 0:03:00.2]} 8. h5 {[%clk 0:02:58.4]} 8...
Ne4 {[%clk 0:02:50]} 9. h6 {[%clk 0:02:56.9]} 9... g6 {[%clk 0:02:50]} 10. Bd3
{[%clk 0:02:10.4]} 10... Nd7 {[%clk 0:02:48.7]} 11. Qc2 {[%clk 0:02:10.2]} 11...
Ndf6 {[%clk 0:02:46.4]} 12. Ne5 {[%clk 0:02:09.3]} 12... c5 {[%clk 0:02:46.2]}
13. f3 {[%clk 0:02:01.9]} 13... Nxd2 {[%clk 0:02:46.3]} 14. Qxd2 {[%clk
0:02:02.2]} 14... Qc7 {[%clk 0:02:42.6]} 15. Qf2 {[%clk 0:01:56.7]} 15... Nd7
{[%clk 0:02:42.4]} 16. Qg3 {[%clk 0:01:56.4]} 16... Nxe5 {[%clk 0:02:33.1]} 17.
Bxe5 {[%clk 0:01:34.2]} 17... Bxe5 {[%clk 0:02:33.1]} 18. dxe5 {[%clk
0:01:34.5]} 18... d4 {[%clk 0:02:16.6]} 19. cxd4 {[%clk 0:01:16.6]} 19... cxd4
{[%clk 0:02:17.5]} 20. exd4 {[%clk 0:01:17]} 20... Qe7 {[%clk 0:01:13.6]} 21. a3
{[%clk 0:01:09.7]} 21... Rfd8 {[%clk 0:01:12.8]} 22. Qh4 {[%clk 0:01:09]} 22...
Kf8 {[%clk 0:01:07]} 23. Rc1 {[%clk 0:00:53.4]} 23... Rd7 {[%clk 0:01:02.4]} 24.
Qxe7+ {[%clk 0:00:47.6]} 24... Kxe7 {[%clk 0:01:02.5]} 25. Rh4 {[%clk
0:00:47.9]} 25... Rad8 {[%clk 0:01:02.2]} 26. Bb5 {[%clk 0:00:45]} 26... Bd5
{[%clk 0:00:35.7]} 27. Bxd7 {[%clk 0:00:43.6]} 27... Rxd7 {[%clk 0:00:36.6]} 28.
Kf2 {[%clk 0:00:42.2]} 28... f5 {[%clk 0:00:32.3]} 29. exf6+ {[%clk 0:00:37.5]}
29... Kxf6 {[%clk 0:00:32.7]} 30. Ke3 {[%clk 0:00:38]} 30... g5 {[%clk
0:00:33.1]} 31. Rhh1 {[%clk 0:00:37.8]} 31... Kg6 {[%clk 0:00:30.7]} 32. Rc8
{[%clk 0:00:37.5]} 32... a5 {[%clk 0:00:23.4]} 33. Rg8+ {[%clk 0:00:37.2]} 33...
Kf6 {[%clk 0:00:22.4]} 34. Rc1 {[%clk 0:00:36.3]} 34... e5 {[%clk 0:00:18.6]}
35. dxe5+ {[%clk 0:00:36.4]} 35... Kxe5 {[%clk 0:00:19.5]} 36. Rg7 {[%clk
0:00:36.6]} 36... Rd6 {[%clk 0:00:19.2]} 37. Rxh7 {[%clk 0:00:30.6]} 37... b5
{[%clk 0:00:19.7]} 38. Re7+ {[%clk 0:00:29.4]} 38... Kf6 {[%clk 0:00:20.1]} 39.
h7 {[%clk 0:00:29.2]} 39... Rd8 {[%clk 0:00:20.5]} 40. Rcc7 {[%clk 0:00:27.1]}
40... Bc4 {[%clk 0:00:19]} 41. a4 {[%clk 0:00:24.4]} 41... Rd3+ {[%clk
0:00:14.7]} 42. Kf2 {[%clk 0:00:24]} 42... Rd2+ {[%clk 0:00:14.5]} 43. Kg3
{[%clk 0:00:24.1]} 43... Bf1 {[%clk 0:00:15.1]} 44. h8=Q+ {[%clk 0:00:22.2]} 1-0